bitfinex/quotes_SOLUSD_20250414
["timestamp","ask_amount","ask_price","bid_price","bid_amount"]
[1744645962726,18.8999,128.54,128.45,7.92696157]
[1744645963039,47.23478356,128.5,128.45,55.16174513]
[1744645963763,47.23478356,128.48,128.44,7.7854]
[1744645964426,47.23478356,128.51,128.46,47.23478356]
[1744645964836,47.23478356,128.52,128.47,47.23478356]
[1744645965029,47.23478356,128.51,128.46,47.23478356]
[1744645965732,7.7803,128.53,128.47,7.7839]
[1744645965935,47.23478356,128.52,128.47,55.01868356]
[1744645966254,47.23478356,128.51,128.47,55.01868356]
[1744645966421,47.23478356,128.51,128.47,7.7839]
[1744645966626,47.23478356,128.49,128.43,19.4655]
[1744645966951,47.23478356,128.5,128.45,47.23478356]
[1744645967651,47.23478356,128.53,128.49,7.7827]
[1744645967863,47.23478356,128.52,128.47,47.23478356]
[1744645968037,47.23478356,128.51,128.46,47.23478356]
[1744645968552,47.23478356,128.49,128.46,7.7845]
[1744645968755,47.23478356,128.48,128.45,7.7848]
[1744645968950,47.23478356,128.5,128.45,7.7848]
[1744645969148,47.23478356,128.48,128.45,7.7848]
[1744645969335,47.23478356,128.49,128.45,7.7848]
[1744645970140,90.6802,128.54,128.47,47.23478356]
[1744645970349,47.23478356,128.51,128.47,47.23478356]
[1744645970546,82.9,128.54,128.47,47.23478356]
[1744645970845,82.9,128.54,128.5,47.23478356]
[1744645971045,82.9,128.58,128.53,47.23478356]
[1744645971246,82.9,128.58,128.56,47.23478356]
[1744645971452,47.23478356,128.62,128.57,47.23478356]
[1744645971664,47.23478356,128.59,128.53,18.79181043]
[1744645971843,47.23478356,128.58,128.54,7.7796]
[1744645972045,7.7751,128.62,128.55,47.23478356]
[1744645972251,198.3409,128.63,128.44,6.2686]
[1744645972452,47.23478356,128.56,128.46,47.23478356]
[1744645972756,47.23478356,128.56,128.5,0.14216157]
[1744645972954,47.23478356,128.57,128.52,47.23478356]
[1744645973160,47.23478356,128.58,128.53,47.23478356]
[1744645973546,47.23478356,128.58,128.53,55.01468356]
[1744645973770,47.23478356,128.58,128.53,7.7799]
[1744645973948,47.23478356,128.59,128.54,47.23478356]
[1744645974150,6.0755,128.63,128.55,0.14216157]
[1744645974357,6.0755,128.63,128.56,47.23478356]
[1744645974542,1.73886157,128.66,128.55,0.14216157]
[1744645974543,1.5967,128.66,128.58,47.23478356]
[1744645974862,47.23478356,128.64,128.59,47.23478356]
[1744645975071,47.23478356,128.62,128.57,73.23478356]
[1744645975267,47.23478356,128.6,128.55,47.23478356]
[1744645975443,47.23478356,128.58,128.53,47.23478356]
[1744645975651,47.23478356,128.57,128.52,47.23478356]
[1744645975845,47.23478356,128.58,128.53,47.23478356]
[1744645976870,47.23478356,128.56,128.51,55.01618356]
[1744645977167,47.23478356,128.58,128.53,47.23478356]
[1744645977349,47.23478356,128.59,128.54,47.23478356]
[1744645977549,47.23478356,128.59,128.54,55.01418356]
[1744645977765,47.23478356,128.58,128.54,7.7794]
[1744645977972,47.23478356,128.59,128.54,55.01418356]
[1744645978157,11.12,128.63,128.55,47.23478356]
[1744645978158,47.23478356,128.6,128.55,47.23478356]
[1744645978795,47.23478356,128.61,128.56,47.23478356]
[1744645978969,47.23478356,128.6,128.55,47.5191067]
[1744645979475,47.23478356,128.61,128.56,47.23478356]
[1744645979770,47.23478356,128.61,128.56,55.01318356]
[1744645980070,7.7738,128.64,128.59,47.23478356]
[1744645980271,0.03,128.66,128.62,47.23478356]
[1744645980459,0.03,128.66,128.63,47.23478356]
[1744645980974,47.23478356,128.65,128.61,26.0]
[1744645981149,47.23478356,128.63,128.58,47.23478356]
[1744645981354,47.23478356,128.6,128.56,7.7784]
[1744645981554,47.23478356,128.59,128.55,7.7789]
[1744645981765,47.23478356,128.57,128.54,7.7795]
[1744645981968,47.23478356,128.57,128.53,18.9]
[1744645982272,47.23478356,128.56,128.53,7.78]
[1744645982476,47.23478356,128.55,128.52,7.7806]
[1744645982678,47.23478356,128.55,128.5,1.6453]
[1744645982679,47.23478356,128.53,128.5,7.7821]
[1744645982857,47.23478356,128.58,128.5,0.14216157]
[1744645983056,47.23478356,128.58,128.5,47.37694513]
[1744645983258,47.23478356,128.55,128.5,47.37694513]
[1744645983457,1.77086157,128.6,128.5,47.37694513]
[1744645983760,47.23478356,128.54,128.51,7.7814]
[1744645983961,47.23478356,128.53,128.47,6.6173]
[1744645984158,47.23478356,128.51,128.47,0.14216157]
[1744645984352,47.23478356,128.49,128.47,7.7839]
[1744645984553,47.23478356,128.52,128.47,74.47838356]
[1744645984782,47.23478356,128.53,128.48,47.23478356]
[1744645984960,11.1,128.57,128.5,47.23478356]
[1744645985165,47.23478356,128.54,128.49,47.23478356]
[1744645985484,47.23478356,128.56,128.51,47.23478356]
[1744645985658,47.23478356,128.55,128.51,7.7814]
[1744645985981,47.23478356,128.54,128.5,7.7818]
[1744645986163,47.23478356,128.52,128.47,47.37694513]
[1744645986366,47.23478356,128.49,128.47,7.7839]
[1744645986565,7.7778,128.57,128.48,47.23478356]
[1744645986777,47.23478356,128.53,128.48,47.23478356]
[1744645987083,47.23478356,128.52,128.48,0.28432314]
[1744645987278,30.98898486,128.5,128.47,7.7839]
[1744645987454,30.98898486,128.49,128.47,7.7839]
[1744645987867,30.98898486,128.49,128.45,58.23658486]
[1744645988176,30.98898486,128.5,128.46,0.14216157]
[1744645988378,19.58676157,128.57,128.47,30.98898486]
[1744645988379,30.98898486,128.52,128.47,30.98898486]
[1744645988558,30.98898486,128.55,128.5,31.13114643]
[1744645988757,30.98898486,128.55,128.51,30.98898486]
[1744645989060,30.98898486,128.55,128.5,31.13114643]
[1744645989378,46.99191618,128.53,128.48,72.99191618]
[1744645989583,46.99191618,128.54,128.48,26.0]
[1744645989768,46.99191618,128.55,128.5,46.99191618]
[1744645990076,46.99191618,128.53,128.49,33.7827]
[1744645990583,0.14216157,128.56,128.49,7.7827]
[1744645990797,46.99191618,128.54,128.49,54.77461618]
[1744645990956,7.7783,128.57,128.49,54.77461618]
[1744645991277,46.99191618,128.52,128.49,7.7827]
[1744645991464,7.7783,128.57,128.49,7.7827]
[1744645991665,129.89191618,128.58,128.5,47.27623932]
[1744645991868,46.99191618,128.55,128.51,46.99191618]
[1744645992065,18.8756,128.61,128.53,46.99191618]
[1744645992268,46.99191618,128.59,128.54,46.99191618]
[1744645992482,11.1,128.61,128.53,0.28432314]
[1744645992784,46.99191618,128.59,128.54,46.99191618]
[1744645993283,46.99191618,128.58,128.53,46.99191618]
[1744645993458,18.8755,128.61,128.53,46.99191618]
[1744645993659,46.99191618,128.58,128.53,46.99191618]
[1744645993859,46.99191618,128.59,128.54,47.27623932]
[1744645994071,11.1,128.61,128.55,7.779]
[1744645994378,46.99191618,128.57,128.52,54.77271618]
[1744645994552,46.99191618,128.55,128.52,7.7808]
[1744645994869,46.99191618,128.59,128.54,46.99191618]
[1744645995062,46.99191618,128.59,128.55,46.99191618]
[1744645995259,46.99191618,128.6,128.55,46.99191618]
[1744645995459,46.99191618,128.59,128.54,47.27623932]
[1744645995684,11.1,128.61,128.55,46.99191618]
[1744645995865,46.99191618,128.59,128.54,47.27623932]
[1744645996065,18.8756,128.61,128.55,7.779]
[1744645996373,46.99191618,128.59,128.55,7.779]
[1744645996573,18.8757,128.61,128.55,7.779]
[1744645996768,46.99191618,128.59,128.55,7.779]
[1744645997369,7.775,128.62,128.55,7.779]
[1744645997667,46.99191618,128.57,128.54,7.7794]
[1744645998071,46.99191618,128.6,128.55,46.99191618]
[1744645998282,46.99191618,128.59,128.54,74.22041618]
[1744645998678,46.99191618,128.56,128.54,7.7794]
[1744645998870,46.99191618,128.56,128.53,7.78]
[1744645999185,46.99191618,128.57,128.53,7.78]
[1744645999387,46.99191618,128.56,128.53,7.78]
[1744645999761,46.99191618,128.57,128.53,7.78]
[1744646000177,46.99191618,128.58,128.53,54.77191618]
[1744646000395,46.99191618,128.58,128.53,74.22261618]
[1744646000564,46.99191618,128.57,128.53,7.78]
[1744646000759,46.99191618,128.58,128.53,54.77191618]
[1744646000956,82.9,128.59,128.53,74.22261618]
[1744646001157,34.5,128.66,128.58,46.99191618]
[1744646001384,46.99191618,128.63,128.58,46.99191618]
[1744646001559,46.99191618,128.59,128.55,11.1]
[1744646001764,46.99191618,128.56,128.53,7.78]
[1744646001971,46.99191618,128.55,128.53,7.78]
[1744646002184,46.99191618,128.58,128.52,7.7808]
[1744646002381,46.99191618,128.55,128.52,7.7808]
[1744646002582,54.76921618,128.58,128.52,7.7808]
[1744646002583,46.99191618,128.54,128.52,7.7808]
[1744646002876,46.99191618,128.55,128.52,7.7808]
[1744646003565,46.99191618,128.55,128.51,7.7814]
[1744646004080,46.99191618,128.54,128.51,7.7814]
[1744646004482,36.86146157,128.6,128.51,27.2351]
[1744646004661,46.99191618,128.56,128.51,74.22701618]
[1744646004861,17.278,128.6,128.51,74.22701618]
[1744646005066,46.99191618,128.54,128.51,7.7814]
[1744646005673,46.99191618,128.54,128.5,7.7821]
[1744646006090,46.99191618,128.53,128.5,7.7821]
[1744646006265,46.99191618,128.54,128.5,7.7821]
[1744646006584,46.99191618,128.55,128.5,74.22921618]
[1744646007084,82.9,128.58,128.52,46.99191618]
[1744646007384,129.89191618,128.58,128.5,74.22921618]
[1744646007573,46.99191618,128.56,128.51,46.99191618]
[1744646007881,46.99191618,128.56,128.52,7.7808]
[1744646008280,46.99191618,128.55,128.52,7.7808]
[1744646008683,46.99191618,128.56,128.52,7.7808]
[1744646009070,46.99191618,128.55,128.52,7.7808]
[1744646009885,46.99191618,128.55,128.51,7.7814]
[1744646010081,82.9,128.58,128.54,46.99191618]
[1744646010286,82.9,128.58,128.55,46.99191618]
[1744646010478,129.89191618,128.58,128.52,0.28432314]
[1744646010791,82.9,128.58,128.54,46.99191618]
[1744646010965,82.9,128.61,128.57,46.99191618]
[1744646011165,82.9,128.61,128.58,30.94217174]
[1744646011374,82.9,128.64,128.59,30.94217174]
[1744646011567,113.84217174,128.64,128.59,30.94217174]
[1744646011777,82.9,128.64,128.6,38.71817174]
[1744646011963,0.03,128.66,128.64,6.53466157]
[1744646012173,0.0001,128.67,128.65,50.30262845]
[1744646012383,0.0001,128.68,128.67,26.28432314]
[1744646012567,0.0001,128.68,128.67,57.51081802]
[1744646013590,0.03,128.71,128.67,57.51081802]
[1744646013591,0.03,128.71,128.69,0.14216157]
[1744646013787,0.03,128.71,128.68,27.1992]
[1744646014491,0.03,128.71,128.69,30.94217174]
[1744646014689,0.03,128.71,128.68,7.7712]
[1744646015084,30.94217174,128.7,128.68,7.7712]
[1744646015279,30.94217174,128.69,128.65,7.773]
[1744646015791,30.97217174,128.71,128.67,7.7718]
[1744646015979,0.03,128.71,128.67,38.71397174]
[1744646016788,0.03,128.71,128.68,30.94217174]
[1744646016992,0.03,128.71,128.69,30.94217174]
[1744646017298,0.03,128.71,128.68,0.28432314]
[1744646017596,0.03,128.71,128.69,30.94217174]
[1744646017800,0.03,128.71,128.68,0.28432314]
[1744646017801,0.0001,128.71,128.7,38.99649488]
[1744646018470,0.0001,128.71,128.7,70.22298976]
[1744646018676,0.0001,128.71,128.7,38.99649488]
[1744646019098,0.0001,128.71,128.7,70.36515133]
[1744646019403,0.0001,128.71,128.7,39.42297959]
[1744646019579,0.0001,128.71,128.7,39.28081802]
[1744646019777,0.0001,128.71,128.7,38.71217174]
[1744646020381,0.0001,128.71,128.7,39.13865645]
[1744646020592,0.0001,128.71,128.7,39.28081802]
[1744646020807,0.0001,128.71,128.7,38.99649488]
[1744646020986,0.0001,128.71,128.7,7.77]
[1744646021180,0.0001,128.71,128.7,38.99649488]
[1744646022004,0.0001,128.72,128.7,38.99649488]
[1744646022308,0.0001,128.72,128.71,31.22649488]
[1744646022605,0.03,128.74,128.71,50.30262845]
[1744646022809,0.03,128.74,128.73,57.22649488]
[1744646023385,0.03,128.74,128.73,57.51081802]
[1744646023797,0.03,128.74,128.73,26.0]
[1744646024000,0.03,128.74,128.73,33.7681]
[1744646024181,0.03,128.74,128.73,64.99459488]
[1744646024391,0.03,128.74,128.73,65.27891802]
[1744646024601,0.03,128.78,128.75,0.28432314]
[1744646025003,0.03,128.78,128.76,30.94217174]
[1744646025320,0.03,128.79,128.78,0.28432314]
[1744646025485,0.03,128.84,128.82,30.94217174]
[1744646025692,30.97217174,128.84,128.8,26.0]
[1744646025905,30.97217174,128.84,128.81,7.7633]
[1744646026100,0.03,128.84,128.81,58.11387174]
[1744646026313,0.03,128.84,128.81,27.1717]
[1744646026495,0.03,128.84,128.81,7.7633]
[1744646026694,0.03,128.84,128.8,7.7638]
[1744646026902,30.94217174,128.83,128.8,7.7638]
[1744646027100,0.03,128.84,128.8,7.7638]
[1744646027312,30.94217174,128.83,128.8,7.7638]
[1744646027605,30.94217174,128.81,128.76,7.7663]
[1744646027813,30.94217174,128.82,128.77,30.94217174]
[1744646027995,30.94217174,128.81,128.76,58.12437174]
[1744646028200,30.94217174,128.82,128.77,30.94217174]
[1744646028682,7.7917,128.84,128.77,30.94217174]
[1744646028884,30.94217174,128.82,128.76,27.1822]
[1744646029086,7.90476157,128.83,128.76,58.12437174]
[1744646029314,30.94217174,128.82,128.77,30.94217174]
[1744646029584,0.03,128.84,128.78,30.94217174]
[1744646029792,30.94217174,128.83,128.79,30.94217174]
[1744646030002,0.03,128.84,128.77,0.28432314]
[1744646030215,30.94217174,128.82,128.76,27.1822]
[1744646030506,30.94217174,128.82,128.77,30.94217174]
[1744646030709,30.94217174,128.81,128.76,27.1822]
[1744646031007,30.94217174,128.82,128.77,30.94217174]
[1744646031216,30.94217174,128.82,128.76,27.1822]
[1744646031387,7.93376157,128.84,128.78,30.94217174]
[1744646031586,30.94217174,128.82,128.76,27.1822]
[1744646031901,30.94217174,128.82,128.77,30.94217174]
[1744646032089,7.93376157,128.84,128.76,38.70847174]
[1744646032288,0.03,128.84,128.78,30.94217174]
[1744646032523,0.03,128.84,128.8,30.94217174]
[1744646032725,0.03,128.84,128.77,0.28432314]
[1744646032897,30.94217174,128.83,128.78,30.94217174]
[1744646033090,30.94217174,128.83,128.79,7.7645]
[1744646033506,7.7919,128.84,128.79,7.7645]
[1744646033712,30.94217174,128.82,128.79,7.7645]
[1744646033890,30.97217174,128.84,128.79,38.70667174]
[1744646034391,30.94217174,128.83,128.79,38.70667174]
[1744646034592,30.94217174,128.83,128.79,7.7645]
[1744646035014,30.97217174,128.84,128.79,38.70667174]
[1744646035412,30.94217174,128.82,128.79,7.7645]
[1744646035911,7.7915,128.84,128.79,7.7645]
[1744646036116,30.94217174,128.82,128.79,7.7645]
[1744646036329,30.94217174,128.8,128.76,30.94217174]
[1744646036493,30.94217174,128.8,128.76,7.7663]
[1744646036688,18.933972,128.83,128.76,7.7663]
[1744646037009,30.94217174,128.81,128.76,38.70847174]
[1744646037321,0.03,128.84,128.79,7.7645]
[1744646037704,30.94217174,128.83,128.79,7.7645]
[1744646038099,30.94217174,128.8,128.74,7.7675]
[1744646038298,30.94217174,128.82,128.77,31.08433331]
[1744646038602,0.03,128.84,128.78,30.94217174]
[1744646038603,30.94217174,128.83,128.78,30.94217174]
[1744646038809,30.94217174,128.82,128.77,57.08433331]
[1744646039120,0.03,128.84,128.78,30.94217174]
[1744646039324,30.94217174,128.83,128.78,30.94217174]
[1744646039493,0.03,128.84,128.79,38.70667174]
[1744646039694,0.03,128.84,128.8,30.94217174]
[1744646040003,0.03,128.84,128.81,30.94217174]
[1744646040512,0.03,128.84,128.83,57.22649488]
[1744646040709,0.03,128.84,128.83,26.28432314]
[1744646040914,30.97217174,128.84,128.79,58.11807174]
[1744646041618,0.03,128.84,128.8,30.94217174]
[1744646041995,30.94217174,128.82,128.79,7.7645]
[1744646042504,30.94217174,128.81,128.77,11.06]
[1744646042714,30.94217174,128.81,128.76,30.94217174]
[1744646042916,0.03,128.84,128.8,26.0]
[1744646043108,46.77605973,128.83,128.8,26.0]
[1744646043315,46.77605973,128.82,128.78,47.06038287]
[1744646043528,46.77605973,128.81,128.77,7.7655]
[1744646043925,0.03,128.84,128.79,46.77605973]
[1744646044228,46.77605973,128.8,128.77,7.7655]
[1744646044408,46.77605973,128.78,128.73,46.77605973]
[1744646044608,46.9182213,128.82,128.75,0.24]
[1744646044832,46.77605973,128.77,128.75,0.24]
[1744646045129,46.77605973,128.79,128.75,0.24]
[1744646045704,54.6813213,128.82,128.76,7.7663]
[1744646045904,46.77605973,128.78,128.75,8.0068]
[1744646046304,54.6813213,128.82,128.75,54.78285973]
[1744646046305,7.90526157,128.82,128.75,54.78285973]
[1744646046502,7.90526157,128.82,128.75,8.0068]
[1744646046707,46.77605973,128.79,128.75,8.0068]
[1744646046915,46.77605973,128.79,128.75,7.7668]
[1744646047129,46.77605973,128.79,128.74,47.06038287]
[1744646047523,54.6812213,128.82,128.74,47.06038287]
[1744646047722,46.77605973,128.79,128.74,47.06038287]
[1744646048111,7.90516157,128.82,128.75,46.77605973]
[1744646048313,7.792,128.84,128.77,46.77605973]
[1744646048622,0.14216157,128.83,128.76,46.77605973]
[1744646048818,46.77605973,128.81,128.76,46.77605973]
[1744646049015,0.14216157,128.8,128.72,11.06]
[1744646049219,46.77605973,128.74,128.7,19.4865]
[1744646049611,46.77605973,128.72,128.7,0.063]
[1744646049811,46.77605973,128.72,128.71,15.2]
[1744646050013,46.77605973,128.72,128.7,0.063]
[1744646050331,46.77605973,128.71,128.7,0.063]
[1744646051227,46.77605973,128.74,128.7,0.063]
[1744646051735,46.9182213,128.76,128.7,0.063]
[1744646051940,46.77605973,128.74,128.7,46.83905973]
[1744646052119,46.77605973,128.74,128.7,0.063]
[1744646052433,93.96,128.77,128.7,46.83905973]
[1744646052641,46.77605973,128.73,128.7,0.063]
[1744646052938,18.933972,128.75,128.7,0.063]
[1744646053237,46.77605973,128.73,128.7,0.063]
[1744646053416,46.77605973,128.72,128.7,0.063]
[1744646053615,46.9182213,128.76,128.7,0.063]
[1744646053877,46.77605973,128.74,128.7,0.063]
[1744646054021,46.77605973,128.72,128.7,0.063]
[1744646054227,18.933972,128.75,128.7,0.063]
[1744646054520,46.77605973,128.71,128.7,0.063]
[1744646055419,0.14216157,128.73,128.7,0.063]
[1744646055626,46.77605973,128.71,128.7,0.063]
[1744646056336,46.77605973,128.72,128.7,0.063]
[1744646056534,46.77605973,128.71,128.7,0.063]
[1744646057345,46.77605973,128.73,128.7,0.063]
[1744646057536,46.77605973,128.72,128.7,0.063]
[1744646058133,46.77605973,128.71,128.7,0.063]
[1744646058850,0.14216157,128.73,128.7,0.063]
[1744646059030,46.77605973,128.71,128.7,0.063]
[1744646060351,7.91036157,128.73,128.7,0.063]
[1744646060659,46.77605973,128.71,128.7,0.063]
[1744646061152,82.9,128.72,128.7,0.063]
[1744646061629,46.77605973,128.75,128.7,46.83905973]
[1744646062031,46.77605973,128.73,128.7,0.063]
[1744646062332,82.9,128.74,128.7,46.83905973]
[1744646062545,82.9,128.74,128.71,46.77605973]
[1744646062850,46.77605973,128.73,128.7,0.063]
[1744646063050,82.9,128.74,128.7,0.063]
[1744646063243,82.9,128.74,128.7,30.94613681]
[1744646063441,113.78313681,128.74,128.71,7.7694]
[1744646063955,82.9,128.74,128.71,7.7694]
[1744646064351,82.9,128.79,128.74,26.0]
[1744646064555,82.9,128.79,128.76,30.88313681]
[1744646064742,82.9,128.79,128.75,56.88313681]
[1744646064938,80.55808405,128.76,128.7,0.063]
[1744646065132,30.88313681,128.71,128.7,0.063]
[1744646066361,30.88313681,128.72,128.7,0.063]
[1744646067257,0.14216157,128.74,128.7,0.063]
[1744646067559,30.88313681,128.74,128.7,7.833]
[1744646067742,30.88313681,128.73,128.7,7.833]
[1744646067943,30.88313681,128.74,128.7,7.833]
[1744646068443,30.88313681,128.75,128.71,30.88313681]
[1744646068643,30.88313681,128.77,128.72,30.88313681]
[1744646069038,134.5,128.79,128.73,30.88313681]
[1744646069552,165.38313681,128.79,128.75,7.7669]
[1744646069862,30.88313681,128.79,128.75,7.7669]
[1744646070161,30.88313681,128.78,128.75,7.7669]
[1744646071167,30.88313681,128.76,128.74,7.7673]
[1744646071364,82.9,128.75,128.74,7.7673]
[1744646071539,82.9,128.75,128.72,38.65193681]
[1744646071740,113.78313681,128.75,128.72,7.7688]
[1744646072545,30.88313681,128.74,128.71,7.7691]
[1744646072751,0.14216157,128.76,128.71,7.7691]
[1744646072953,30.88313681,128.75,128.71,7.7691]
[1744646074142,82.9,128.79,128.72,0.28432314]
[1744646074451,82.9,128.79,128.75,30.88313681]
[1744646074653,82.9,128.83,128.78,30.88313681]
[1744646074863,30.88313681,128.82,128.78,30.88313681]
[1744646075039,113.78313681,128.83,128.78,30.88313681]
[1744646075238,113.78313681,128.83,128.76,0.28432314]
[1744646075239,82.9,128.83,128.79,30.88313681]
[1744646075538,82.9,128.83,128.82,30.88313681]
[1744646075743,0.03,128.84,128.83,7.7621]
[1744646077644,0.0001,128.85,128.84,0.14216157]
[1744646077845,0.0001,128.85,128.84,38.92895995]
[1744646078161,0.0001,128.85,128.84,38.64463681]
[1744646078463,0.0001,128.85,128.84,7.7615]
[1744646078852,0.0001,128.85,128.84,38.64463681]
[1744646079358,0.0001,128.85,128.84,7.7615]
[1744646080262,0.0001,128.85,128.81,38.64643681]
[1744646080468,30.88323681,128.85,128.82,0.75]
[1744646080975,30.88313681,128.83,128.82,0.75]
[1744646081341,30.88313681,128.84,128.82,0.75]
[1744646081544,0.0001,128.85,128.82,0.75]
[1744646081757,0.0001,128.85,128.84,30.88313681]
[1744646082164,0.0001,128.85,128.84,7.7615]
[1744646082357,0.0001,128.85,128.84,38.64463681]
[1744646082751,0.0001,128.85,128.84,7.7615]
[1744646082957,0.0001,128.85,128.84,38.64463681]
[1744646083349,0.0001,128.85,128.84,7.7615]
[1744646083559,0.0001,128.85,128.82,0.14216157]
[1744646083560,30.88323681,128.85,128.82,7.7627]
[1744646083883,0.0001,128.85,128.83,30.88313681]
[1744646084062,0.0001,128.85,128.82,58.05273681]
[1744646084266,0.0001,128.85,128.83,30.88313681]
[1744646084564,0.0001,128.85,128.82,58.05273681]
[1744646085073,30.88323681,128.85,128.82,7.7627]
[1744646085370,0.0001,128.85,128.82,7.7627]
[1744646085663,30.88323681,128.85,128.82,7.7627]
[1744646085966,0.0001,128.85,128.79,7.7645]
[1744646086162,30.88313681,128.81,128.8,15.63]
[1744646086644,30.88313681,128.82,128.8,15.63]
[1744646087058,30.88313681,128.82,128.79,7.7643]
[1744646087440,25.29023357,128.85,128.79,7.7643]
[1744646087749,30.88313681,128.82,128.79,7.7643]
[1744646087955,25.29023357,128.85,128.79,7.7643]
[1744646088154,30.88313681,128.83,128.79,7.7643]
[1744646088357,25.29023357,128.85,128.79,7.7643]
[1744646088563,30.88313681,128.83,128.79,7.7643]
[1744646088873,30.88313681,128.84,128.79,38.64743681]
[1744646089064,30.88313681,128.84,128.8,30.88313681]
[1744646089267,30.88323681,128.85,128.79,27.1757]
[1744646089463,30.88313681,128.83,128.79,27.1757]
[1744646089970,30.88313681,128.84,128.79,58.05883681]
[1744646090346,30.88313681,128.81,128.79,7.7643]
[1744646091045,30.88313681,128.8,128.77,7.7653]
[1744646091249,0.14216157,128.84,128.77,58.06283681]
[1744646091449,30.88313681,128.83,128.78,30.88313681]
[1744646091868,0.0001,128.85,128.79,30.88313681]
[1744646092169,30.88313681,128.84,128.8,30.88313681]
[1744646092355,30.88313681,128.84,128.8,7.7638]
[1744646092555,30.88313681,128.83,128.8,7.7638]
[1744646093380,30.88313681,128.84,128.8,7.7638]
[1744646093569,30.88313681,128.82,128.79,7.7644]
[1744646093950,30.88313681,128.83,128.79,7.7644]
[1744646094152,30.88323681,128.85,128.81,30.88313681]
[1744646094552,0.0001,128.85,128.8,30.88313681]
[1744646094856,0.14226157,128.85,128.79,7.7644]
[1744646095052,30.88313681,128.83,128.79,7.7644]
[1744646096153,30.88313681,128.82,128.79,7.7644]
[1744646097681,30.88313681,128.8,128.78,7.7651]
[1744646098763,30.88313681,128.8,128.77,7.7657]
[1744646098967,30.88313681,128.81,128.77,7.7657]
[1744646100078,30.88313681,128.79,128.76,7.7661]
[1744646100375,30.88313681,128.78,128.75,7.7667]
[1744646100584,30.88313681,128.78,128.71,3.80478729]
[1744646100585,30.88313681,128.76,128.71,38.65253681]
[1744646100882,30.88313681,128.76,128.72,46.52313681]
[1744646101173,113.78313681,128.75,128.72,15.64]
[1744646101352,82.9,128.75,128.73,30.88313681]
[1744646101749,82.9,128.75,128.74,15.64]
[1744646101966,30.88313681,128.77,128.74,15.64]
[1744646102953,30.88313681,128.76,128.71,19.4235]
[1744646103185,30.88313681,128.76,128.71,50.30663681]
[1744646103475,30.88313681,128.77,128.72,58.07393681]
[1744646103671,30.88313681,128.77,128.72,27.1908]
[1744646103884,30.88313681,128.75,128.72,7.7688]
[1744646104059,30.88313681,128.76,128.72,7.7688]
[1744646104454,82.9,128.75,128.72,7.7688]
[1744646104670,30.88313681,128.74,128.72,7.7688]
[1744646104872,82.9,128.75,128.72,30.88313681]
[1744646105455,82.9,128.75,128.71,58.07603681]
[1744646105655,82.9,128.75,128.72,30.88313681]
[1744646105958,82.9,128.79,128.74,30.88313681]
[1744646106278,82.9,128.79,128.78,30.88313681]
[1744646106480,30.88313681,128.81,128.77,30.88313681]
[1744646106773,30.88313681,128.8,128.76,7.7663]
[1744646106974,90.80466157,128.83,128.76,7.7663]
[1744646107159,30.88313681,128.8,128.76,38.64943681]
[1744646107366,82.9,128.82,128.76,27.1822]
[1744646107672,30.88313681,128.8,128.76,7.7663]
[1744646107864,30.88313681,128.8,128.76,38.64943681]
[1744646108055,83.04216157,128.81,128.76,38.64943681]
[1744646108256,82.9,128.81,128.76,58.06533681]
[1744646108455,82.9,128.81,128.77,30.88313681]
[1744646108676,113.78313681,128.81,128.76,58.06533681]
[1744646109177,82.9,128.81,128.77,30.88313681]
[1744646109572,82.9,128.81,128.79,30.88313681]
[1744646109879,82.9,128.81,128.78,30.88313681]
[1744646110072,82.9,128.81,128.76,27.1822]
[1744646110283,82.9,128.8,128.78,30.88313681]
[1744646110456,113.78313681,128.79,128.76,7.7663]
[1744646110659,30.88313681,128.77,128.74,7.7675]
[1744646110886,30.88313681,128.77,128.75,15.64]
[1744646111070,30.88313681,128.77,128.75,23.4069]
[1744646111480,30.88313681,128.77,128.72,30.88313681]
[1744646111681,30.88313681,128.77,128.73,7.7681]
[1744646111977,19.07613357,128.77,128.7,0.063]
[1744646112166,30.88313681,128.76,128.71,58.07583681]
[1744646112373,31.02529838,128.77,128.71,27.1927]
[1744646112564,82.9,128.78,128.73,30.88313681]
[1744646112766,113.78313681,128.78,128.74,30.88313681]